bitfinex/quotes_ETHUSD_20250924
["timestamp","ask_amount","ask_price","bid_price","bid_amount"]
[1758684212692,0.12,4155.5,4155.4,2.40648039]
[1758684213384,0.12,4155.5,4155.4,3.11148039]
[1758684213686,0.12,4155.5,4154.7,0.12]
[1758684213887,0.12,4155.5,4155.0,4.088]
[1758684214090,0.3565,4155.5,4155.0,4.088]
[1758684214293,0.12,4155.5,4155.0,4.5569]
[1758684214455,0.12,4155.5,4155.1,0.2361]
[1758684214654,0.12,4155.5,4155.1,0.705]
[1758684215051,0.12,4155.5,4155.0,4.088]
[1758684215256,0.12,4155.5,4155.2,0.2361]
[1758684215491,0.12,4155.5,4155.0,4.088]
[1758684215786,0.12,4155.5,4155.1,0.705]
[1758684215988,0.12,4155.5,4155.2,0.705]
[1758684216191,0.12,4155.5,4155.1,0.705]
[1758684216367,0.12,4155.5,4154.8,2.40684914]
[1758684216568,0.12,4155.5,4154.9,0.705]
[1758684216791,0.12,4155.5,4155.0,0.2361]
[1758684217094,0.12,4155.5,4155.1,0.705]
[1758684217269,0.12,4155.5,4155.2,0.705]
[1758684217654,0.12,4155.5,4155.3,0.705]
[1758684218157,0.12,4155.5,4155.4,0.705]
[1758684218353,0.37745442,4156.3,4155.4,0.705]
[1758684218354,0.13317425,4156.0,4155.4,0.705]
[1758684218558,0.001,4155.5,4155.3,2.40655657]
[1758684218890,0.001,4155.5,4155.4,2.40650719]
[1758684219255,0.001,4155.5,4155.4,3.11150719]
[1758684219486,0.001,4155.5,4155.4,0.705]
[1758684219695,0.001,4155.5,4155.2,4.3231]
[1758684219910,0.001,4155.5,4155.0,0.12]
[1758684220057,0.12,4155.3,4154.8,0.2361]
[1758684220255,0.12,4155.3,4154.9,0.705]
[1758684220684,0.12,4155.3,4154.9,0.2361]
[1758684221870,2.8601651,4155.3,4154.0,0.4519]
[1758684222059,2.8601651,4155.3,4153.2,0.4519]
[1758684222060,3.0,4154.7,4153.2,0.4519]
[1758684222302,2.4071444,4154.3,4153.2,0.682]
[1758684222497,3.35508245,4154.2,4153.2,0.682]
[1758684222696,6.00478479,4154.2,4153.5,0.682]
[1758684223082,6.45838479,4154.2,4153.5,0.682]
[1758684223269,6.45838479,4154.2,4153.1,0.02]
[1758684223270,7.38269172,4154.2,4153.1,0.02]
[1758684223468,7.38269172,4154.2,4153.1,0.702]
[1758684223701,7.38269172,4154.2,4153.1,0.02]
[1758684223702,12.78388399,4154.2,4153.1,0.02]
[1758684223860,13.29494646,4154.2,4153.1,0.02]
[1758684224398,0.792,4154.0,4153.1,0.02]
[1758684224701,2.40778195,4153.2,4153.1,0.02]
[1758684224898,7.44208245,4153.2,4153.1,0.02]
[1758684225201,7.68458245,4153.2,4153.1,0.02]
[1758684225370,4.44208245,4153.2,4153.1,0.02]
[1758684225578,4.7831,4153.2,4153.1,0.02]
[1758684225771,0.37770189,4153.3,4153.1,0.02]
[1758684225976,4.087,4153.2,4153.1,0.702]
[1758684226176,4.087,4153.2,4153.1,0.02]
[1758684226403,5.43787019,4153.2,4153.1,0.02]
[1758684226704,11.19998164,4153.2,4153.1,0.02]
[1758684227269,11.70979392,4153.2,4153.1,0.02]
[1758684227774,13.28398164,4153.2,4153.1,0.02]
[1758684227970,10.74738164,4153.2,4153.1,0.02]
[1758684228200,13.28398164,4153.2,4153.1,0.02]
[1758684228507,7.11298164,4153.2,4153.1,0.02]
[1758684228815,13.28398164,4153.2,4153.1,0.02]
[1758684228971,0.78764367,4153.2,4153.1,0.02]
[1758684229182,4.088,4153.2,4153.1,0.02]
[1758684229378,4.088,4153.2,4153.1,0.2501]
[1758684229675,4.088,4153.2,4153.1,0.02]
[1758684230208,2.083,4153.7,4153.1,0.702]
[1758684230392,4.22059525,4153.6,4153.1,0.02]
[1758684230597,4.06295449,4153.5,4153.1,0.02]
[1758684230799,4.38395953,4153.5,4153.1,0.02]
[1758684230974,3.93035953,4153.5,4153.1,0.02]
[1758684231304,0.2425,4153.4,4153.1,0.02]
[1758684231677,3.93035953,4153.5,4153.1,0.02]
[1758684231873,3.0,4153.3,4153.1,0.02]
[1758684232069,3.0,4153.3,4153.2,2.63788195]
[1758684232273,3.0,4153.3,4153.1,0.02]
[1758684232505,0.2425,4153.2,4153.1,0.02]
[1758684232712,0.6961,4153.2,4153.1,0.02]
[1758684232914,1.79454427,4153.2,4153.1,0.02]
[1758684233511,7.33477663,4153.2,4153.1,0.02]
[1758684233729,5.14774967,4153.2,4153.1,0.02]
[1758684233922,7.55553162,4153.2,4153.1,0.02]
[1758684234383,11.09899468,4153.2,4153.1,0.02]
[1758684235006,13.72749216,4153.2,4153.1,0.02]
[1758684235399,13.50677663,4153.2,4153.1,0.02]
[1758684235935,13.72741975,4153.2,4153.1,0.02]
[1758684236280,14.51941975,4153.2,4153.1,0.02]
[1758684236484,15.0275857,4153.2,4153.1,0.02]
[1758684238923,4.4515378,4153.2,4153.1,0.024]
[1758684239123,5.76087548,4153.2,4153.1,0.024]
[1758684239433,9.76859353,4153.2,4153.1,0.024]
[1758684239587,2.43709353,4153.2,4153.1,0.024]
[1758684239924,4.089,4153.2,4153.1,0.706]
[1758684240625,4.089,4153.2,4153.1,0.024]
[1758684240827,7.88262253,4153.2,4153.1,0.024]
[1758684241119,12.02744921,4153.2,4153.1,0.024]
[1758684241326,12.53543323,4153.2,4153.1,0.024]
[1758684241512,12.91316138,4153.2,4153.1,0.024]
[1758684242018,11.66756138,4153.2,4153.1,0.024]
[1758684242184,12.45956138,4153.2,4153.1,0.024]
[1758684242385,12.91316138,4153.2,4153.1,0.024]
[1758684242618,4.42029541,4153.2,4153.1,0.024]
[1758684242806,13.00107736,4153.2,4153.1,0.024]
[1758684243011,4.42029541,4153.2,4153.1,0.024]
[1758684243186,4.42029541,4153.2,4153.1,0.706]
[1758684243187,0.37772815,4153.2,4153.1,0.706]
[1758684243390,4.46672815,4153.2,4153.1,0.706]
[1758684244027,0.37772815,4153.2,4153.1,3.11383992]
[1758684244328,2.814,4153.3,4153.2,2.40778195]
[1758684244539,0.37864066,4154.1,4153.2,0.682]
[1758684244540,0.72436211,4154.0,4153.2,0.682]
[1758684244701,4.089,4153.9,4153.7,2.40744502]
[1758684244905,0.37864066,4154.1,4153.8,0.682]
[1758684245225,2.4073773,4153.9,4153.1,0.024]
[1758684245388,4.089,4154.0,4153.1,0.024]
[1758684245389,0.6875018,4153.8,4153.1,0.024]
[1758684245590,0.6875018,4153.8,4153.2,0.4519]
[1758684245591,3.0,4153.6,4153.2,0.4519]
[1758684245785,3.0,4153.6,4153.3,0.682]
[1758684246324,3.0,4153.6,4153.3,0.4519]
[1758684246525,3.0,4153.6,4153.4,0.682]
[1758684246728,3.0,4153.6,4153.5,0.2301]
[1758684246927,3.0,4153.6,4153.2,0.2301]
[1758684247113,3.0,4153.6,4153.3,0.682]
[1758684247294,3.0,4153.6,4153.4,3.08965407]
[1758684247624,3.0,4153.6,4153.5,0.682]
[1758684247835,3.0,4153.6,4153.1,0.2541]
[1758684248127,3.7089,4153.6,4153.1,0.024]
[1758684248314,0.9514,4153.6,4153.1,0.024]
[1758684248654,4.089,4153.7,4153.2,0.682]
[1758684248862,4.089,4153.7,4153.3,0.682]
[1758684249232,0.22150025,4153.6,4153.4,0.2301]
[1758684249525,0.35440046,4153.6,4153.4,0.2301]
[1758684249716,0.35440046,4153.6,4153.1,2.43183351]
[1758684249917,0.12,4153.3,4153.2,0.682]
[1758684250122,0.12,4153.3,4153.2,3.08978195]
[1758684250315,0.12,4153.5,4153.2,3.08978195]
[1758684250514,0.12,4153.5,4153.4,2.407666]
[1758684251049,3.712,4153.9,4153.4,0.70607666]
[1758684251241,0.12,4153.7,4153.6,2.40750161]
[1758684251439,0.12,4153.7,4153.4,2.40761237]
[1758684251749,0.12,4153.7,4153.1,0.144]
[1758684251920,0.12,4153.7,4153.2,3.11622725]
[1758684252118,0.12,4153.7,4153.3,3.11617513]
[1758684252320,0.12,4153.7,4153.4,0.7085]
[1758684252727,0.12,4153.7,4153.1,0.144]
[1758684252934,0.12,4153.7,4153.1,0.2646]
[1758684252935,0.12,4153.3,4153.1,0.2646]
[1758684253132,0.12,4153.3,4153.1,0.024]
[1758684253371,0.35544334,4153.2,4153.1,0.024]
[1758684257169,0.35544334,4153.2,4153.1,0.6903]
[1758684257391,0.12,4153.5,4153.1,3.09813992]
[1758684257686,0.12,4153.5,4153.4,2.407666]
[1758684257971,0.4753467,4153.5,4153.4,2.407666]
[1758684258134,0.25325501,4153.5,4153.4,2.407666]
[1758684258339,0.25325501,4153.5,4153.4,3.073966]
[1758684258658,0.25325501,4153.5,4153.4,0.6663]
[1758684258853,0.25325501,4153.5,4153.4,3.073966]
[1758684259066,0.12,4153.5,4153.4,3.073966]
[1758684259452,0.12,4153.5,4153.4,0.6663]
[1758684261769,0.12,4153.5,4153.4,3.073966]
[1758684262072,0.34200974,4153.9,4153.7,2.40749182]
[1758684262239,0.35521326,4153.8,4153.7,2.40749182]
[1758684262439,0.35521326,4153.8,4153.2,0.12]
[1758684262635,0.35521326,4153.7,4153.3,2.40772036]
[1758684262863,0.12,4153.9,4153.4,0.2377]
[1758684263140,0.35518619,4153.8,4153.5,0.2377]
[1758684263372,0.12,4153.9,4153.5,0.2377]
[1758684263714,0.35515469,4153.8,4153.5,0.6663]
[1758684263874,0.12,4153.9,4153.6,0.2377]
[1758684264077,0.35515509,4153.8,4153.2,0.12]
[1758684264239,0.35515509,4153.8,4153.1,0.024]
[1758684264240,2.40760557,4153.6,4153.1,0.024]
[1758684264446,0.12,4153.3,4153.1,0.024]
[1758684264748,0.12,4153.3,4153.2,0.6663]
[1758684265465,0.12,4153.3,4153.1,0.024]
[1758684267988,0.12,4153.3,4153.2,3.09815976]
[1758684268375,0.51155082,4153.8,4153.2,3.07408195]
[1758684268685,0.47557926,4153.7,4153.3,0.6663]
[1758684268888,0.35557926,4153.6,4153.5,2.40755165]
[1758684269091,0.12,4153.7,4153.5,3.07385165]
[1758684269295,0.121,4154.1,4153.6,0.6663]
[1758684269490,0.121,4154.1,4153.4,0.12]
[1758684269491,0.121,4154.1,4154.0,2.40731824]
[1758684269794,0.121,4154.1,4154.0,3.07361824]
[1758684269795,0.25440999,4154.1,4154.0,3.07361824]
[1758684269955,0.121,4154.1,4154.0,3.07361824]
[1758684270793,0.001,4154.1,4154.0,3.07361824]
[1758684272088,0.001,4154.1,4154.0,3.19361824]
[1758684272258,0.001,4154.1,4154.0,0.7863]
[1758684272457,0.001,4154.1,4154.0,2.40731824]
[1758684273393,0.001,4154.1,4154.0,3.09769142]
[1758684273599,0.001,4154.1,4154.0,3.19361824]
[1758684274160,0.001,4154.1,4154.0,3.21769142]
[1758684274402,0.001,4154.1,4154.0,3.19361824]
[1758684277086,0.001,4154.1,4154.0,7.28161824]
[1758684279927,0.001,4154.1,4154.0,9.36461824]
[1758684280145,0.001,4154.1,4154.0,9.78327424]
[1758684280296,0.001,4154.1,4154.0,9.36461824]
[1758684282230,0.001,4154.1,4154.0,12.36461824]
[1758684282405,0.001,4154.1,4154.0,13.15661824]
[1758684285533,0.001,4154.6,4154.5,3.19902852]
[1758684285728,0.001,4154.6,4154.5,10.3100988]
[1758684285943,0.001,4154.6,4154.5,11.08422852]
[1758684286456,0.001,4154.6,4154.5,6.31902852]
[1758684286606,0.001,4154.6,4154.5,13.16622852]
[1758684290254,0.001,4154.6,4154.5,6.99722852]
[1758684290641,0.001,4154.6,4154.5,13.16622852]
[1758684292457,0.001,4154.6,4154.5,11.08322852]
[1758684292658,0.001,4154.6,4154.5,13.16622852]
[1758684295263,1e-08,4155.5,4155.3,0.792]
[1758684295478,1e-08,4155.5,4155.4,6.959]
[1758684295775,1e-08,4155.5,4155.4,9.36550719]
[1758684296440,0.4731,4156.3,4155.8,2.40627556]
[1758684296774,0.4731,4156.3,4156.2,2.40604398]
[1758684296985,0.4731,4156.3,4156.2,6.49104398]
[1758684298580,0.7004,4156.3,4156.2,2.40604398]
[1758684298760,0.7004,4156.3,4156.2,6.49104398]
[1758684301589,0.2273,4156.5,4156.4,2.4059282]
[1758684301764,0.7004,4156.5,4156.4,6.4909282]
[1758684304351,0.001,4157.2,4156.8,2.40569668]
[1758684304574,0.001,4157.2,4156.8,6.51375364]
[1758684304805,0.001,4157.2,4156.8,6.48969668]
[1758684305292,0.001,4157.2,4156.8,6.60969668]
[1758684306009,0.001,4157.2,4157.1,2.40552308]
[1758684306326,0.001,4157.2,4157.1,6.63357831]
[1758684306527,0.001,4157.2,4157.1,6.60952308]
[1758684307315,0.001,4157.2,4157.1,2.52552308]
[1758684307628,0.001,4157.2,4157.1,6.63357831]
[1758684307774,0.001,4157.2,4157.1,6.60952308]
[1758684308332,0.001,4157.2,4157.1,7.16772308]
[1758684308622,0.001,4157.7,4157.1,7.16772308]
[1758684308623,1e-08,4157.7,4157.2,2.40546521]
[1758684308975,1e-08,4157.7,4157.3,4.10805407]
[1758684309095,1e-08,4157.7,4157.6,2.40523378]
[1758684309294,1e-08,4157.7,4157.6,6.51328611]
[1758684309497,0.47310001,4157.7,4157.6,6.48923378]
[1758684309806,1e-08,4157.7,4157.6,6.48923378]
[1758684310409,0.70040001,4157.7,4157.6,2.40523378]
[1758684310612,0.70040001,4157.7,4157.6,6.48923378]
[1758684311015,0.70040001,4157.7,4157.6,6.48823378]
[1758684311590,0.70040001,4157.7,4157.6,2.40523378]
[1758684311789,0.70040001,4157.7,4157.6,6.48823378]
[1758684312025,0.70040001,4157.7,4156.6,3.239]
[1758684312026,0.70040001,4157.7,4157.5,2.4052881]
[1758684312329,1.59056022,4157.6,4157.3,4.083]
[1758684312628,1.81319624,4157.5,4157.4,2.40534949]
[1758684312787,1.81319624,4157.5,4157.1,2.4055088]
[1758684312788,1.81319624,4157.5,4157.2,2.40545697]
[1758684312987,1.32135238,4157.4,4157.3,4.083]
[1758684313210,1.32135238,4157.4,4157.3,6.48840735]
[1758684313691,1.54360395,4157.4,4157.2,4.083]
[1758684313891,0.6357998,4157.7,4157.2,6.48846521]
[1758684313892,1.32135238,4157.3,4157.2,6.48846521]
[1758684314189,0.1333314,4157.3,4157.2,6.48846521]
[1758684314391,1e-08,4157.7,4157.5,2.40529164]
[1758684314647,1e-08,4157.7,4157.6,6.51228611]
[1758684314846,1e-08,4157.7,4157.6,6.48823378]
[1758684317223,1e-08,4157.7,4157.6,6.72733378]
[1758684317428,1e-08,4157.7,4157.6,7.18043378]
[1758684318607,1e-08,4157.9,4157.8,2.40511809]
[1758684318808,1e-08,4157.9,4157.8,6.48811809]
[1758684319096,1e-08,4157.9,4157.8,7.30031809]
[1758684323134,1e-08,4157.9,4157.8,2.76421809]
[1758684323303,1e-08,4157.9,4157.8,9.38031809]
[1758684324371,1e-08,4157.9,4157.8,10.17231809]
[1758684325284,1e-08,4157.9,4157.8,13.17231809]
[1758684329469,1e-08,4158.9,4158.8,2.40453977]
[1758684329686,1e-08,4158.9,4158.8,11.59058516]
[1758684329994,1e-08,4158.9,4158.8,11.80563977]
[1758684330191,1e-08,4158.9,4158.8,12.25873977]
[1758684331388,1e-08,4158.9,4158.8,13.05073977]
[1758684338078,1e-08,4158.9,4158.8,12.35853977]
[1758684338278,1e-08,4158.9,4158.8,12.59763977]
[1758684338477,1e-08,4158.9,4158.8,13.05073977]
[1758684339614,1e-08,4158.9,4158.8,13.17073977]
[1758684340679,1e-08,4158.9,4158.8,6.31653977]
[1758684340885,0.44760001,4158.9,4158.8,4.60453977]
[1758684341081,0.44760001,4158.9,4158.8,8.68353977]
[1758684341927,1e-08,4158.9,4158.8,8.68353977]
[1758684342487,1e-08,4158.9,4158.8,2.52453977]
[1758684342687,1e-08,4158.9,4158.8,8.68353977]
[1758684342895,1e-08,4158.9,4158.8,2.52453977]
[1758684343190,1e-08,4158.9,4158.8,8.68353977]
[1758684343403,1e-08,4158.9,4158.8,9.47553977]
[1758684346132,1e-08,4158.9,4158.8,9.70723977]
[1758684346331,1e-08,4158.9,4158.8,10.15453977]
[1758684346834,1e-08,4158.9,4158.8,13.15453977]
[1758684350554,1e-08,4158.9,4158.8,6.99553977]
[1758684350756,1e-08,4158.9,4158.8,13.15853977]
[1758684352266,0.2383,4159.7,4158.9,3.0]
[1758684352470,0.021,4159.9,4159.8,2.40396172]
[1758684352758,0.021,4159.9,4159.8,8.56196172]
[1758684353060,0.2593,4159.9,4159.8,8.56196172]
[1758684359068,0.021,4159.9,4159.8,8.56196172]
[1758684359769,0.2593,4159.9,4159.8,8.56196172]
[1758684359973,0.5795,4159.9,4159.8,8.56196172]
[1758684360873,0.021,4160.9,4159.9,3.19590393]
[1758684361061,0.021,4160.9,4160.0,4.869]
[1758684361062,0.2383,4160.7,4160.0,4.869]
[1758684361262,0.2383,4160.7,4160.3,2.40367281]
[1758684361463,0.2383,4160.7,4160.3,6.50470953]
[1758684361668,0.2383,4160.7,4160.3,6.48067281]
[1758684362263,0.2383,4160.7,4160.3,7.39267281]
[1758684365500,0.3412,4160.9,4160.3,7.39267281]
[1758684365712,0.5795,4160.9,4160.3,7.39267281]
[1758684366179,0.021,4160.9,4160.3,6.60067281]
[1758684366384,0.021,4160.9,4160.3,7.27967281]
[1758684366688,0.021,4160.9,4160.3,6.60067281]
[1758684366873,0.2393,4160.8,4160.3,6.60067281]
[1758684367074,0.001,4160.8,4160.3,6.60067281]
[1758684367282,0.2383,4160.7,4160.3,2.52367281]
[1758684367592,0.001,4160.8,4160.3,8.67967281]
[1758684368499,0.001,4160.8,4160.3,2.52367281]
[1758684368700,0.5595,4160.4,4160.3,2.52367281]
[1758684368900,0.5595,4160.4,4160.3,6.59967281]
[1758684370607,0.5595,4160.4,4160.3,2.52367281]
[1758684370799,0.5595,4160.4,4160.3,6.59967281]
[1758684374334,0.5595,4160.4,4160.3,4.196]
[1758684375336,0.5595,4160.4,4160.3,6.59967281]
[1758684377749,0.69337595,4160.4,4159.0,0.5595]
[1758684378044,0.92677683,4160.3,4159.7,2.40400828]
[1758684378254,0.70367595,4160.2,4159.8,3.84196061]
[1758684378546,0.13387595,4160.1,4159.8,3.84196061]
[1758684378694,0.13382442,4160.0,4159.9,2.40390206]
[1758684378895,0.38342442,4160.0,4159.8,3.84195914]
[1758684379152,0.3202,4160.3,4159.8,3.84195914]
[1758684379309,0.2496,4159.9,4159.8,3.84195914]
[1758684379910,0.2496,4159.9,4159.8,1.438]
[1758684380528,0.2496,4159.9,4159.8,3.84196172]
[1758684383237,0.2496,4159.9,4159.8,2.40396172]
[1758684383563,7.23448467,4159.9,4159.0,2.08]
[1758684383714,6.66468467,4159.4,4159.1,4.075]
[1758684384043,0.5698,4159.3,4158.8,0.0087]
[1758684384198,0.5698,4159.3,4158.9,4.075]
[1758684384399,0.5698,4159.2,4158.9,4.075]
[1758684384599,0.5698,4159.2,4158.8,0.0087]
[1758684384600,0.2496,4159.1,4159.0,4.075]
[1758684384838,0.2496,4159.1,4158.8,0.0087]
[1758684384839,1.26122847,4159.1,4158.8,0.0087]
[1758684385142,0.13364036,4159.0,4158.8,2.8837]
[1758684385324,1.26122847,4159.1,4158.8,2.8837]
[1758684385325,0.69142847,4159.1,4158.8,2.8837]
[1758684385636,0.5698,4159.0,4158.8,2.8837]
[1758684385839,0.3202,4158.9,4158.8,2.8837]
[1758684386007,0.91139404,4158.9,4158.8,2.8837]
[1758684386202,0.91139404,4158.9,4158.8,0.0087]
[1758684386203,1.70339404,4158.9,4158.8,0.0087]
[1758684387743,1.70339404,4158.9,4158.8,0.004]
[1758684388831,4.10787599,4158.9,4158.8,0.004]
[1758684389206,1.70339404,4158.9,4158.8,0.004]
[1758684390406,4.10787599,4158.9,4158.8,0.004]
[1758684390608,1.70339404,4158.9,4158.8,0.004]
[1758684391005,7.10787599,4158.9,4158.8,0.004]
[1758684391204,7.24108151,4158.9,4158.8,0.004]
[1758684391639,11.31608151,4158.9,4158.8,0.004]
[1758684392247,4.51639956,4158.9,4158.8,0.004]
[1758684392445,3.792,4158.9,4158.8,0.004]
[1758684393638,6.44608195,4158.9,4158.8,0.004]
[1758684393837,4.0416,4158.9,4158.8,0.004]
[1758684394037,3.792,4158.9,4158.8,0.004]
[1758684395246,6.44608195,4158.9,4158.8,0.004]
[1758684395411,8.50626053,4158.9,4158.8,0.004]
[1758684396023,6.10177858,4158.9,4158.8,0.004]
[1758684396447,5.85217858,4158.9,4158.8,0.004]
[1758684397266,6.10177858,4158.9,4158.8,0.004]
[1758684397758,2.40471323,4158.5,4158.4,0.004]
[1758684397961,12.8613979,4158.5,4158.4,0.004]
[1758684398253,13.56431375,4158.5,4158.4,0.004]
[1758684398666,6.19677106,4158.4,4158.3,0.004]
[1758684398826,9.11462374,4158.4,4158.3,0.004]
[1758684399157,9.68442374,4158.4,4158.3,0.004]
[1758684399760,13.75942374,4158.4,4158.3,0.004]
[1758684400061,6.19688672,4158.2,4158.1,0.02]
[1758684400255,10.6269018,4158.2,4158.1,0.02]
[1758684400476,13.46760131,4158.2,4158.1,0.02]
[1758684401289,13.46760131,4158.2,4158.0,0.004]
[1758684401290,6.31694456,4158.1,4158.0,0.004]
[1758684401439,6.67195964,4158.1,4158.0,0.004]
[1758684401644,7.23025964,4158.1,4158.0,0.004]
[1758684401839,8.86608926,4158.1,4158.0,0.004]
[1758684402189,9.4734541,4158.1,4158.0,0.004]
[1758684402355,3.1970024,4158.0,4157.9,0.004]
[1758684402543,0.792,4157.8,4157.1,0.024]
[1758684402743,10.45668467,4157.2,4157.1,0.024]
[1758684402942,14.53168467,4157.2,4157.1,0.024]
[1758684403148,16.2253843,4157.2,4157.1,0.024]
[1758684403355,18.63084951,4157.2,4157.1,0.024]
[1758684403553,16.2253843,4157.2,4157.1,0.024]
[1758684403754,18.63084951,4157.2,4157.1,0.024]
[1758684404205,18.63084951,4157.2,4156.7,0.004]
[1758684404206,0.792,4157.0,4156.7,0.004]
[1758684404367,3.792,4156.8,4156.7,0.004]
[1758684404707,6.19769668,4156.8,4156.7,0.004]
[1758684404853,6.888981,4156.8,4156.7,0.004]
[1758684405054,7.26632858,4156.8,4156.7,0.004]
[1758684405353,7.48785773,4156.8,4156.7,0.004]
[1758684405570,9.09046144,4156.8,4156.7,0.004]
[1758684405970,6.68476476,4156.8,4156.7,0.004]
[1758684406218,9.09046144,4156.8,4156.7,0.004]
[1758684407382,8.77026144,4156.8,4156.7,0.004]
[1758684407706,6.19798609,4156.3,4156.2,0.004]
[1758684408005,17.91198284,4156.3,4156.2,0.004]
[1758684408510,4.86283007,4156.3,4156.2,0.004]
[1758684408679,7.29657069,4156.3,4156.2,0.6869]
[1758684409004,7.42942246,4156.3,4156.2,0.004]
[1758684409905,7.42942246,4156.3,4156.2,0.6869]
[1758684410079,7.42942246,4156.3,4156.2,0.2507]
[1758684410080,7.29657069,4156.3,4156.2,0.2507]
[1758684410400,7.42940747,4156.3,4156.2,0.004]
[1758684410609,7.29657069,4156.3,4156.2,0.004]
[1758684411178,12.38360907,4156.3,4156.2,0.004]
[1758684411399,9.97762298,4156.3,4156.2,0.004]
[1758684411575,9.73952298,4156.3,4156.2,0.004]
[1758684413405,12.14550907,4156.3,4156.2,0.004]
[1758684413713,9.73952298,4156.3,4156.2,0.004]
[1758684419411,0.85170463,4156.3,4156.2,3.09764398]
[1758684420515,0.98472351,4156.3,4156.2,0.6916]
[1758684420714,7.14050353,4156.3,4156.2,0.0087]
[1758684420931,9.78458962,4156.3,4156.2,0.0087]
[1758684421241,9.7846968,4156.3,4156.2,0.0087]
[1758684422653,7.37871071,4156.3,4156.2,0.0087]
[1758684422854,9.7846968,4156.3,4156.2,0.0087]
[1758684423223,15.1868968,4156.3,4156.2,0.0087]
[1758684423858,16.46623247,4156.3,4156.2,0.0087]
[1758684424022,21.29328147,4156.3,4156.2,0.0087]
[1758684424360,23.13091714,4156.3,4156.2,0.0087]
[1758684425050,22.81071714,4156.3,4156.2,0.0087]
[1758684425545,22.57261714,4156.3,4156.2,0.0087]
[1758684426062,22.81071714,4156.3,4156.2,0.0087]
[1758684426222,21.85158147,4156.3,4156.2,0.0087]
[1758684426623,20.58984079,4156.3,4156.2,0.0087]
[1758684427227,6.19804398,4156.2,4156.1,0.024]
[1758684427423,9.74381227,4156.2,4156.1,0.024]
[1758684427824,7.47709552,4156.2,4156.1,0.024]
[1758684428049,9.8831395,4156.2,4156.1,0.024]
[1758684428245,13.58071227,4156.2,4156.1,0.024]
[1758684428451,15.66271227,4156.2,4156.1,0.024]
[1758684428662,13.25666829,4156.2,4156.1,0.024]
[1758684429125,15.66271227,4156.2,4156.1,0.024]
[1758684429541,18.98365626,4156.2,4156.1,0.024]
[1758684429734,21.30375626,4156.2,4156.1,0.024]
[1758684429977,21.62395626,4156.2,4156.1,0.024]
[1758684430174,21.62476348,4156.2,4156.1,0.024]
[1758684430467,21.30456348,4156.2,4156.1,0.024]
[1758684431247,21.68199208,4156.2,4156.1,0.024]
[1758684432847,6.19821766,4155.9,4155.8,0.004]
[1758684433144,18.98363716,4155.9,4155.8,0.004]
[1758684433354,19.53793716,4155.9,4155.8,0.004]
[1758684434246,0.792,4155.4,4155.1,0.02]
[1758684434446,17.004511,4155.2,4155.1,0.02]
[1758684434669,22.02459439,4155.2,4155.1,0.02]
[1758684434871,22.75581679,4155.2,4155.1,0.02]
[1758684435081,23.07601679,4155.2,4155.1,0.02]
[1758684435277,21.36440891,4155.2,4155.1,0.02]
[1758684435578,23.07601679,4155.2,4155.1,0.02]
[1758684436376,21.36440891,4155.2,4155.1,0.02]
[1758684437374,21.36691482,4155.2,4155.1,0.02]
[1758684439605,20.81261482,4155.2,4155.1,0.02]
[1758684439790,21.04671482,4155.2,4155.1,0.02]
[1758684441902,21.04671482,4155.2,4155.1,0.024]
[1758684442316,21.04671482,4155.2,4155.1,0.7243]
[1758684442317,4.24568738,4155.2,4155.1,0.7243]
[1758684442491,8.95967764,4155.2,4155.1,0.7243]
[1758684442898,9.75167764,4155.2,4155.1,0.7243]
[1758684443099,5.1866685,4155.2,4155.1,0.7243]
[1758684443413,0.8684662,4155.2,4155.1,0.7243]
[1758684443613,4.9424662,4155.2,4155.1,0.7243]
[1758684444409,8.7344662,4155.2,4155.1,0.7243]
[1758684444603,8.7344662,4155.2,4155.1,3.13098094]
[1758684445725,0.47582635,4155.2,4155.1,3.13098094]
[1758684445904,0.12,4155.2,4155.1,3.13098094]
[1758684446711,0.001,4155.3,4155.2,2.40662302]
[1758684446905,0.001,4155.3,4155.2,3.10692302]
[1758684447507,0.001,4155.3,4155.2,0.7003]
[1758684447712,0.001,4155.3,4155.2,3.10692302]
[1758684450432,0.001,4155.3,4155.2,0.7003]
[1758684456043,0.001,4155.3,4155.2,3.10692302]
[1758684456223,0.001,4155.3,4155.2,0.4642]
[1758684456542,0.001,4155.3,4155.2,0.7003]
[1758684457354,0.001,4155.3,4155.2,3.10692302]
[1758684461160,0.001,4155.3,4155.2,0.7003]
[1758684461659,0.001,4155.3,4155.2,3.10692302]
[1758684465461,0.001,4155.3,4155.1,0.024]
[1758684465770,0.5413944,4155.3,4155.1,0.024]
[1758684465924,0.001,4155.3,4155.1,0.024]
[1758684466364,0.001,4155.3,4155.2,0.226]
[1758684466563,0.001,4155.3,4155.2,0.6928]
[1758684466769,0.001,4155.3,4155.1,0.024]
[1758684466970,13.37148345,4155.2,4155.1,0.024]
[1758684467197,24.29584937,4155.2,4155.1,0.024]
[1758684467499,24.29584937,4155.2,4155.0,0.004]
[1758684467707,3.19891265,4154.7,4154.1,0.024]
[1758684467999,11.60208839,4154.3,4154.1,0.024]
[1758684468168,18.62478285,4154.3,4154.1,0.024]
[1758684468373,21.41389647,4154.3,4154.1,0.024]
[1758684468978,21.09369647,4154.3,4154.1,0.024]
[1758684469303,21.41389647,4154.3,4154.1,0.024]
[1758684470362,21.79150933,4154.3,4154.1,0.024]
[1758684470815,22.43223869,4154.3,4154.1,0.024]